bitfinex/quotes_BTCUSD_20240810
["timestamp","ask_amount","ask_price","bid_price","bid_amount"]
[1723271112442,0.00263195,60465.0,60464.0,1.84925852]
[1723271112644,0.00263195,60465.0,60464.0,1.91521385]
[1723271113115,0.00263195,60465.0,60464.0,2.79060085]
[1723271113249,0.00063195,60465.0,60464.0,2.95424821]
[1723271113477,0.00063195,60465.0,60464.0,2.88604133]
[1723271113679,0.00263195,60465.0,60464.0,2.96824821]
[1723271113908,0.00263195,60465.0,60464.0,2.89404133]
[1723271114363,1.0,60483.0,60482.0,0.413345]
[1723271114562,1.0,60483.0,60482.0,0.85714401]
[1723271114698,1.0,60483.0,60482.0,0.88221476]
[1723271115291,1.0,60483.0,60482.0,1.04755276]
[1723271115513,1.0,60483.0,60482.0,1.16105276]
[1723271116186,1.0,60483.0,60482.0,1.02376867]
[1723271116402,1.0,60483.0,60482.0,1.16103005]
[1723271117273,1.0,60483.0,60482.0,1.17003005]
[1723271117490,1.0,60483.0,60482.0,1.18003005]
[1723271118172,1.000831,60483.0,60482.0,1.04276867]
[1723271119354,1.000831,60483.0,60482.0,1.03376867]
[1723271119585,1.000831,60483.0,60482.0,1.17103006]
[1723271119817,1.000831,60483.0,60482.0,1.18003006]
[1723271120055,1.000831,60483.0,60482.0,1.17003006]
[1723271120509,1.000831,60483.0,60482.0,1.18003006]
[1723271120887,1.000831,60483.0,60482.0,1.03376867]
[1723271121096,1.000831,60483.0,60482.0,1.02376867]
[1723271121318,1.000831,60483.0,60482.0,1.03276867]
[1723271121519,1.000831,60483.0,60482.0,1.04276867]
[1723271121724,1.000831,60483.0,60482.0,1.05276867]
[1723271122466,1.000831,60483.0,60482.0,1.18002177]
[1723271122709,1.000831,60483.0,60482.0,1.17102177]
[1723271122910,1.000831,60483.0,60482.0,1.18502177]
[1723271123790,1.000831,60483.0,60482.0,1.19902177]
[1723271124218,1.000831,60483.0,60482.0,1.18502178]
[1723271124627,1.000831,60483.0,60482.0,1.19902178]
[1723271124806,1.000831,60483.0,60482.0,1.18502178]
[1723271126795,1.000831,60483.0,60482.0,1.18902178]
[1723271127241,1.000831,60483.0,60482.0,1.18902663]
[1723271127728,1.000831,60483.0,60482.0,1.17502663]
[1723271128142,1.000831,60483.0,60482.0,1.17502824]
[1723271128482,1.000831,60483.0,60482.0,1.18902824]
[1723271132405,1.000831,60483.0,60482.0,1.24684404]
[1723271134444,1.000831,60483.0,60482.0,1.18902824]
[1723271135750,1.000831,60483.0,60482.0,1.18902511]
[1723271136673,1.000831,60483.0,60482.0,1.16102511]
[1723271136893,1.000831,60483.0,60482.0,1.17502511]
[1723271137099,1.000831,60483.0,60482.0,1.18902511]
[1723271137390,1.000831,60483.0,60482.0,1.35899416]
[1723271137757,1.000831,60483.0,60482.0,1.38699416]
[1723271139470,1.000831,60483.0,60482.0,1.38699683]
[1723271139971,1.000831,60483.0,60482.0,1.37299683]
[1723271140363,1.000831,60483.0,60482.0,1.55856756]
[1723271141012,1.000831,60483.0,60482.0,1.38699683]
[1723271141239,1.000831,60483.0,60482.0,1.55856764]
[1723271141438,1.000831,60483.0,60482.0,1.62498786]
[1723271142952,1.000831,60483.0,60482.0,1.05176867]
[1723271143147,1.000831,60483.0,60482.0,1.62503959]
[1723271146565,1.000831,60483.0,60482.0,1.62518007]
[1723271146979,1.000831,60483.0,60482.0,1.05176867]
[1723271147204,1.000831,60483.0,60482.0,1.62520156]
[1723271147393,1.000831,60483.0,60482.0,1.42703326]
[1723271147616,1.000831,60483.0,60482.0,1.62523866]
[1723271148185,1.000831,60483.0,60482.0,1.61123866]
[1723271148340,1.000831,60483.0,60482.0,1.59723866]
[1723271148542,1.000831,60483.0,60482.0,1.62523866]
[1723271148994,1.000831,60483.0,60482.0,1.61123866]
[1723271149470,1.000831,60483.0,60482.0,1.71466378]
[1723271149817,1.000831,60483.0,60482.0,1.70066378]
[1723271150151,1.000831,60483.0,60482.0,1.71466378]
[1723271150395,1.000831,60483.0,60482.0,1.72866378]
[1723271150599,1.000831,60483.0,60482.0,1.72867329]
[1723271153875,1.000831,60483.0,60482.0,1.55837265]
[1723271154080,1.000831,60483.0,60482.0,1.72993932]
[1723271157125,1.000831,60483.0,60482.0,1.72994096]
[1723271157532,1.000831,60483.0,60482.0,1.15519379]
[1723271157730,1.000831,60483.0,60482.0,1.73058094]
[1723271158185,1.000831,60483.0,60482.0,1.56043305]
[1723271158414,1.000831,60483.0,60482.0,1.62716462]
[1723271158615,1.000831,60483.0,60482.0,1.73059206]
[1723271159013,1.000831,60483.0,60482.0,1.62716462]
[1723271159218,1.000831,60483.0,60482.0,1.73059209]
[1723271159994,1.000831,60483.0,60482.0,1.71659209]
[1723271160221,1.000831,60483.0,60482.0,1.70259209]
[1723271160374,1.000831,60483.0,60482.0,1.73059209]
[1723271160577,1.000831,60483.0,60482.0,1.71659209]
[1723271160814,1.000831,60483.0,60482.0,1.29876445]
[1723271161011,1.000831,60483.0,60482.0,1.80481855]
[1723271161687,1.000831,60483.0,60482.0,1.73053949]
[1723271161852,1.000831,60483.0,60482.0,1.71653949]
[1723271162074,1.000831,60483.0,60482.0,1.74053949]
[1723271162447,1.000831,60483.0,60482.0,1.73053949]
[1723271162636,1.000831,60483.0,60482.0,1.71653949]
[1723271162837,1.000831,60483.0,60482.0,1.73053949]
[1723271163336,1.000831,60483.0,60482.0,1.70253949]
[1723271163538,1.000831,60483.0,60482.0,1.71653949]
[1723271163736,1.000831,60483.0,60482.0,1.73053949]
[1723271164231,1.000831,60483.0,60482.0,1.73056143]
[1723271165428,1.000831,60483.0,60482.0,1.82966813]
[1723271167955,1.000831,60483.0,60482.0,1.35053414]
[1723271168158,1.000831,60483.0,60482.0,2.86145665]
[1723271168409,1.000831,60483.0,60482.0,2.85945665]
[1723271168597,1.000831,60483.0,60482.0,3.03097666]
[1723271168779,1.000831,60483.0,60482.0,2.8594167]
[1723271169605,1.000831,60483.0,60482.0,2.8614167]
[1723271170968,1.000831,60483.0,60482.0,2.85915373]
[1723271171083,1.000831,60483.0,60482.0,2.86115373]
[1723271171289,1.000831,60483.0,60482.0,2.85915373]
[1723271171770,1.000831,60483.0,60482.0,2.86115373]
[1723271171928,1.000831,60483.0,60482.0,2.86114859]
[1723271173355,1.000831,60483.0,60482.0,2.86129408]
[1723271175705,1.000831,60483.0,60482.0,2.86127246]
[1723271176175,1.000831,60483.0,60482.0,2.79127246]
[1723271179212,1.000831,60483.0,60482.0,2.61988341]
[1723271179423,1.000831,60483.0,60482.0,2.79142403]
[1723271179623,1.000831,60483.0,60482.0,2.72447685]
[1723271179829,1.000831,60483.0,60482.0,2.79142113]
[1723271182458,1.000831,60483.0,60482.0,2.70518009]
[1723271182730,1.000831,60483.0,60482.0,2.4443383]
[1723271182879,1.000831,60483.0,60482.0,2.78157073]
[1723271183269,1.000831,60483.0,60482.0,2.84577073]
[1723271183629,1.000831,60483.0,60482.0,2.57550447]
[1723271184167,1.000831,60483.0,60482.0,2.57750447]
[1723271184378,1.000831,60483.0,60482.0,2.33899905]
[1723271184610,1.000831,60483.0,60482.0,2.67623587]
[1723271184969,1.000831,60483.0,60482.0,2.40596239]
[1723271185597,1.000831,60483.0,60482.0,2.54319968]
[1723271186055,1.000831,60483.0,60482.0,2.9148231]
[1723271187208,1.000831,60483.0,60482.0,2.85810132]
[1723271188753,1.000831,60483.0,60482.0,2.86810132]
[1723271188889,1.000831,60483.0,60482.0,2.88810327]
[1723271189092,1.000831,60483.0,60482.0,2.86810327]
[1723271189391,1.000831,60483.0,60482.0,2.29227922]
[1723271189586,1.000831,60483.0,60482.0,2.86824293]
[1723271189984,1.000831,60483.0,60482.0,2.80404293]
[1723271190783,1.000831,60483.0,60482.0,2.79404293]
[1723271190949,1.000831,60483.0,60482.0,2.80404293]
[1723271193104,1.000831,60483.0,60482.0,2.8036133]
[1723271193525,1.000831,60483.0,60482.0,2.29495814]
[1723271193733,1.000831,60483.0,60482.0,2.80361347]
[1723271194840,1.000831,60483.0,60482.0,2.80357242]
[1723271195414,1.000831,60483.0,60482.0,2.70462734]
[1723271196255,1.000831,60483.0,60482.0,2.69462734]
[1723271196506,1.000831,60483.0,60482.0,2.70462734]
[1723271196706,1.000831,60483.0,60482.0,2.70464276]
[1723271199457,1.000831,60483.0,60482.0,2.82836133]
[1723271199882,1.000831,60483.0,60482.0,2.83036133]
[1723271200113,1.000831,60483.0,60482.0,2.51889474]
[1723271200298,1.000831,60483.0,60482.0,2.77097101]
[1723271200569,0.92040668,60483.0,60482.0,2.95630901]
[1723271200913,0.92040668,60483.0,60482.0,2.98941901]
[1723271201677,0.92040668,60483.0,60482.0,2.97541901]
[1723271201854,0.92040668,60483.0,60482.0,2.98941901]
[1723271202052,0.92040668,60483.0,60482.0,2.97541901]
[1723271203588,0.92040668,60483.0,60482.0,2.98941901]
[1723271203796,0.92040668,60483.0,60482.0,2.81728041]
[1723271204007,0.92040668,60483.0,60482.0,2.98880984]
[1723271204227,0.0083718,60483.0,60482.0,2.57912014]
[1723271204442,0.000831,60495.0,60494.0,0.234452]
[1723271204646,0.000831,60495.0,60494.0,2.0487426]
[1723271204799,0.000831,60495.0,60494.0,2.32154778]
[1723271205001,0.000831,60495.0,60494.0,2.35075365]
[1723271205202,0.000831,60495.0,60494.0,2.40255865]
[1723271205409,0.000831,60495.0,60494.0,2.57385934]
[1723271206007,0.000831,60495.0,60494.0,2.58785934]
[1723271206289,0.000831,60495.0,60494.0,2.57385934]
[1723271206708,0.000831,60495.0,60494.0,2.58785934]
[1723271207256,0.000831,60495.0,60494.0,2.39298125]
[1723271207557,0.000831,60495.0,60494.0,2.54418988]
[1723271210212,0.000831,60495.0,60494.0,2.53018988]
[1723271210421,0.000831,60495.0,60494.0,2.51618988]
[1723271210575,0.000831,60495.0,60494.0,2.53018988]
[1723271210989,0.000831,60495.0,60494.0,2.51618988]
[1723271211418,0.000831,60495.0,60494.0,2.53018988]
[1723271211824,0.000831,60495.0,60494.0,2.54418988]
[1723271212390,0.000831,60495.0,60494.0,2.230508]
[1723271212617,0.000831,60495.0,60494.0,2.14638488]
[1723271212809,0.000831,60495.0,60494.0,2.15638488]
[1723271213479,0.000831,60495.0,60494.0,2.14238488]
[1723271213616,0.000831,60495.0,60494.0,2.12838488]
[1723271214010,0.000831,60495.0,60494.0,2.14238488]
[1723271214188,0.000831,60495.0,60494.0,2.19097476]
[1723271214396,0.000831,60495.0,60494.0,1.91412308]
[1723271214600,0.000831,60495.0,60494.0,2.48965427]
[1723271215032,0.000831,60495.0,60494.0,2.25524559]
[1723271215248,0.000831,60495.0,60494.0,2.49365543]
[1723271216360,0.000831,60495.0,60494.0,2.40481502]
[1723271216564,0.000831,60495.0,60494.0,2.39481502]
[1723271216693,0.000831,60495.0,60494.0,2.40481502]
[1723271216896,0.000831,60495.0,60494.0,2.39481502]
[1723271217616,0.000831,60495.0,60494.0,2.37181502]
[1723271217838,0.000831,60495.0,60494.0,1.63842514]
[1723271218053,0.000831,60495.0,60494.0,1.37161359]
[1723271218522,0.000831,60495.0,60494.0,1.572054]
[1723271218746,0.000831,60495.0,60494.0,1.3716422]
[1723271219237,0.000831,60495.0,60494.0,1.572054]
[1723271219690,0.000831,60495.0,60494.0,1.63908039]
[1723271220848,0.000831,60495.0,60494.0,1.81658713]
[1723271221321,0.000831,60495.0,60494.0,1.81659628]
[1723271221810,0.000831,60495.0,60494.0,2.48659628]
[1723271222883,0.000831,60495.0,60494.0,2.63819628]
[1723271223090,0.000831,60495.0,60494.0,2.66119628]
[1723271224550,0.000831,60495.0,60494.0,2.58708067]
[1723271224768,0.000831,60495.0,60494.0,2.58908067]
[1723271224993,0.000831,60495.0,60494.0,2.21720804]
[1723271225290,0.000831,60495.0,60494.0,2.58752039]
[1723271225512,0.000831,60495.0,60494.0,2.58758707]
[1723271225754,0.000831,60495.0,60494.0,2.51758707]
[1723271227155,0.000831,60495.0,60494.0,2.51958707]
[1723271227373,0.000831,60495.0,60494.0,2.70489207]
[1723271227588,0.000831,60495.0,60494.0,2.82832527]
[1723271227803,0.000831,60495.0,60494.0,2.70489207]
[1723271228268,0.000831,60495.0,60494.0,2.66889207]
[1723271228505,0.000831,60495.0,60494.0,2.69080134]
[1723271228758,0.000831,60495.0,60494.0,2.70480134]
[1723271229000,0.000831,60495.0,60494.0,2.67680134]
[1723271229224,0.000831,60495.0,60494.0,2.11418892]
[1723271229433,0.000831,60495.0,60494.0,2.70432151]
[1723271229867,0.000831,60495.0,60494.0,2.69032151]
[1723271230105,0.000831,60495.0,60494.0,2.70432151]
[1723271230545,0.000831,60495.0,60494.0,2.68232151]
[1723271230774,0.000831,60497.0,60496.0,0.91915]
[1723271230992,0.000831,60497.0,60496.0,2.88594552]
[1723271231250,0.000831,60497.0,60496.0,2.89102444]
[1723271231468,0.000831,60497.0,60496.0,2.91302444]
[1723271232377,0.000831,60497.0,60496.0,2.92702444]
[1723271233032,0.000831,60497.0,60496.0,2.81766756]
[1723271233473,0.000831,60497.0,60496.0,2.9409728]
[1723271235976,0.000831,60497.0,60496.0,2.94097605]
[1723271236196,0.000831,60497.0,60496.0,2.81765558]
[1723271236426,0.000831,60497.0,60496.0,2.70415558]
[1723271236644,0.000831,60497.0,60496.0,2.80282547]
[1723271236867,0.000831,60497.0,60496.0,2.91432547]
[1723271237088,0.000831,60497.0,60496.0,2.81565558]
[1723271237301,0.000831,60497.0,60496.0,2.91432547]
[1723271237521,0.000831,60497.0,60496.0,2.91632547]
[1723271237785,0.000831,60497.0,60496.0,2.80282547]
[1723271238050,0.000831,60497.0,60496.0,2.91577525]
[1723271238540,0.000831,60497.0,60496.0,2.80227525]
[1723271238790,0.000831,60497.0,60496.0,2.91377525]
[1723271239014,0.000831,60497.0,60496.0,2.46337525]
[1723271239242,0.000831,60497.0,60496.0,2.58687525]
[1723271240462,0.000831,60497.0,60496.0,2.49811543]
[1723271241167,0.000831,60497.0,60496.0,2.48811543]
[1723271241411,0.000831,60497.0,60496.0,2.61152383]
[1723271241678,0.000831,60497.0,60496.0,2.37461543]
[1723271241982,0.000831,60497.0,60496.0,2.37416254]
[1723271243392,0.000831,60497.0,60496.0,2.44823651]
[1723271243887,0.000831,60497.0,60496.0,2.45823651]
[1723271244437,0.000831,60497.0,60496.0,2.38416254]
[1723271245158,0.000831,60497.0,60496.0,2.45006254]
[1723271245386,0.000831,60497.0,60496.0,2.64967094]
[1723271245604,0.000831,60497.0,60496.0,2.65167094]
[1723271246071,0.000831,60497.0,60496.0,2.31485621]
[1723271246277,0.000831,60497.0,60496.0,2.48136537]
[1723271246479,0.000831,60497.0,60496.0,2.65287526]
[1723271249048,0.000831,60497.0,60496.0,2.52946686]
[1723271249246,0.000831,60497.0,60496.0,2.52686686]
[1723271250533,0.000831,60497.0,60496.0,2.54649849]
[1723271250746,0.000831,60497.0,60496.0,2.54648561]
[1723271250956,0.000831,60497.0,60496.0,1.97054504]
[1723271251167,0.000831,60497.0,60496.0,2.71203385]
[1723271251958,0.000831,60497.0,60496.0,2.86041616]
[1723271253868,0.000831,60497.0,60496.0,2.34963385]
[1723271254298,0.000831,60497.0,60496.0,2.47334741]
[1723271254489,0.000831,60497.0,60496.0,2.34968602]
[1723271256306,0.000831,60497.0,60496.0,2.34967462]
[1723271257952,0.000831,60497.0,60496.0,2.23967462]
[1723271259356,0.000831,60497.0,60496.0,2.36339205]
[1723271260952,0.141331,60497.0,60496.0,1.55861932]
[1723271261190,0.141331,60497.0,60496.0,1.48437462]
[1723271261392,0.141331,60497.0,60496.0,1.38098349]
[1723271261829,0.141331,60497.0,60496.0,0.80475391]
[1723271262080,0.141331,60497.0,60496.0,1.38052103]
[1723271262256,0.141331,60497.0,60496.0,1.38052107]
[1723271262662,0.141331,60497.0,60496.0,1.38052216]
[1723271262883,0.141331,60497.0,60496.0,1.48052216]
[1723271263290,0.141331,60497.0,60496.0,1.41358142]
[1723271263537,0.141331,60497.0,60496.0,1.48051772]
[1723271263745,0.141331,60497.0,60496.0,1.48143193]
[1723271265520,0.141331,60497.0,60496.0,1.48142532]
[1723271267331,0.141331,60497.0,60496.0,1.58481968]
[1723271267554,0.141331,60497.0,60496.0,1.48142532]
[1723271268071,0.141331,60497.0,60496.0,1.58481966]
[1723271268298,0.141331,60497.0,60496.0,1.48142532]
[1723271269084,0.141331,60497.0,60496.0,1.48154752]
[1723271270331,0.076731,60497.0,60496.0,1.48154752]
[1723271270548,0.076731,60497.0,60496.0,1.58494136]
[1723271271406,0.076731,60497.0,60496.0,1.65918606]
[1723271271611,0.076731,60497.0,60496.0,1.58494136]
[1723271271826,0.076731,60497.0,60496.0,1.65918606]
[1723271272521,0.076731,60497.0,60496.0,1.15033584]
[1723271272730,0.076731,60497.0,60496.0,1.65951031]
[1723271272945,0.076731,60497.0,60496.0,1.48799487]
[1723271273161,0.076731,60497.0,60496.0,1.5852656]
[1723271274425,0.076731,60497.0,60496.0,1.58522062]
[1723271275718,0.076731,60497.0,60496.0,1.58487686]
[1723271276382,0.076731,60497.0,60496.0,1.58488109]
[1723271279100,0.000831,60497.0,60496.0,1.58488109]
[1723271279475,0.000831,60497.0,60496.0,1.65912579]
[1723271279753,0.000831,60497.0,60496.0,1.58487722]
[1723271282377,0.000831,60497.0,60496.0,1.58482807]
[1723271282575,0.000831,60497.0,60496.0,1.34652257]
[1723271282793,0.000831,60497.0,60496.0,1.58501851]
[1723271283778,0.000831,60497.0,60496.0,1.58494437]
[1723271285596,0.000831,60497.0,60496.0,1.00906185]
[1723271285822,0.000831,60497.0,60496.0,1.58494904]
[1723271287479,0.000831,60497.0,60496.0,1.65922658]
[1723271289914,0.000831,60497.0,60496.0,1.58494904]
[1723271292596,0.000831,60497.0,60496.0,1.00906185]
[1723271292779,0.000831,60497.0,60496.0,1.58508229]
[1723271293057,0.000831,60497.0,60496.0,1.00906185]
[1723271293255,0.000831,60497.0,60496.0,1.58508525]
[1723271293680,0.000831,60497.0,60496.0,1.48169141]
[1723271294291,0.000831,60497.0,60496.0,1.58509269]
[1723271294639,0.000831,60497.0,60496.0,1.48169141]
[1723271295441,0.000831,60497.0,60496.0,1.58509258]
[1723271296246,0.000831,60497.0,60496.0,1.5850136]
[1723271296593,0.000831,60497.0,60496.0,1.5710136]
[1723271296796,0.000831,60497.0,60496.0,1.5680136]
[1723271296998,0.000831,60497.0,60496.0,1.46461243]
[1723271297127,0.000831,60497.0,60496.0,1.36461243]
[1723271297335,0.142931,60497.0,60496.0,0.94982081]
[1723271297962,0.256431,60497.0,60496.0,0.95091074]
[1723271298146,0.256431,60497.0,60496.0,0.5981567]
[1723271298359,0.256431,60497.0,60496.0,0.32903189]
[1723271298588,0.256431,60497.0,60496.0,0.33903189]
[1723271298839,0.29233878,60497.0,60496.0,0.33903189]
[1723271299055,0.256431,60497.0,60496.0,0.33903189]
[1723271299275,0.256431,60497.0,60496.0,0.42168189]
[1723271299522,0.256431,60497.0,60496.0,0.28445794]
[1723271299734,0.256431,60497.0,60496.0,0.42170561]
[1723271300199,0.256431,60497.0,60496.0,0.33905561]
[1723271300416,0.339079,60497.0,60496.0,0.18624069]
[1723271301462,0.504376,60497.0,60496.0,0.18624069]
[1723271301662,0.339079,60497.0,60496.0,0.18624069]
[1723271303072,0.256431,60497.0,60496.0,0.18623993]
[1723271303271,0.256431,60497.0,60496.0,0.26888993]
[1723271303499,0.256431,60497.0,60496.0,0.13164302]
[1723271303858,0.256431,60497.0,60496.0,0.26888854]
[1723271306467,0.256431,60497.0,60496.0,0.13164302]
[1723271308476,0.256431,60497.0,60496.0,0.26888895]
[1723271309146,0.256431,60497.0,60496.0,0.13164302]
[1723271310113,0.256431,60497.0,60496.0,0.26888894]
[1723271314180,0.256431,60497.0,60496.0,0.43418894]
[1723271314420,0.256431,60497.0,60496.0,0.43418893]
[1723271317214,0.114331,60497.0,60496.0,0.59800385]
[1723271317426,0.259231,60497.0,60496.0,0.59800385]
[1723271318534,0.259231,60497.0,60496.0,0.59800381]
[1723271320263,0.259231,60497.0,60496.0,0.59800408]
[1723271322169,0.259231,60497.0,60496.0,0.46075794]
[1723271322356,0.259231,60497.0,60496.0,0.59800411]
[1723271325821,0.259231,60497.0,60496.0,0.59800412]
[1723271326532,0.194131,60497.0,60496.0,0.59800412]
[1723271327205,0.22987689,60497.0,60496.0,0.59800412]
[1723271327438,0.22987689,60497.0,60496.0,0.59800413]
[1723271327662,0.22987689,60497.0,60496.0,0.35005413]
[1723271328393,0.22987689,60497.0,60496.0,0.43270413]
[1723271329243,0.22987689,60497.0,60496.0,0.18623921]
[1723271329672,0.22987689,60497.0,60496.0,0.04899302]
[1723271329877,0.22987689,60497.0,60496.0,0.18623921]
[1723271330053,0.23000665,60497.0,60496.0,0.17523921]
[1723271330351,0.23000665,60497.0,60496.0,0.18523921]
[1723271330692,0.23000665,60497.0,60496.0,0.17523921]
[1723271331089,0.23000665,60497.0,60496.0,0.18423921]
[1723271331356,0.23001742,60497.0,60496.0,0.18423921]
[1723271332838,0.31266542,60497.0,60496.0,0.18423921]
[1723271333350,0.37636542,60497.0,60496.0,0.18423921]
[1723271333685,0.37636542,60497.0,60496.0,0.17423921]
[1723271334032,0.29371742,60497.0,60496.0,0.16623921]
[1723271335378,0.37636542,60497.0,60496.0,0.16623921]
[1723271335794,0.29371742,60497.0,60496.0,0.16523921]
[1723271335992,0.29371742,60497.0,60496.0,0.16623921]
[1723271337078,0.2938566,60497.0,60496.0,0.16624105]
[1723271337869,0.3765046,60497.0,60496.0,0.16624105]
[1723271338154,0.2938566,60497.0,60496.0,0.16624105]
[1723271339298,0.3765046,60497.0,60496.0,0.16624105]
[1723271339732,0.7070986,60497.0,60496.0,0.16624105]
[1723271339955,0.97140463,60497.0,60496.0,0.16624105]
[1723271340164,0.92635305,60497.0,60496.0,0.0019141]
[1723271340560,0.92651397,60497.0,60496.0,0.0019141]
[1723271340819,0.81301397,60497.0,60496.0,0.0009141]
[1723271341010,0.81301408,60497.0,60496.0,0.0019141]
[1723271341216,0.92651408,60497.0,60496.0,0.0019141]
[1723271341999,0.87249833,60497.0,60496.0,0.0019141]
[1723271342215,0.87232183,60497.0,60496.0,0.0019141]
[1723271346341,0.8723404,60497.0,60496.0,0.0019141]
[1723271346559,0.99620111,60497.0,60496.0,0.0019141]
[1723271349501,0.8723404,60497.0,60496.0,0.0019141]
[1723271350164,0.87235748,60497.0,60496.0,0.0019141]
[1723271350580,0.97140154,60497.0,60496.0,0.0019141]
[1723271351156,0.87235748,60497.0,60496.0,0.0019141]
[1723271351360,0.9714,60497.0,60496.0,0.0019141]
[1723271351659,0.97138134,60497.0,60496.0,0.0019141]
[1723271357515,0.87233882,60497.0,60496.0,0.0019141]
[1723271360095,0.87229799,60497.0,60496.0,0.0019141]
[1723271360631,0.97134051,60497.0,60496.0,0.0019141]
[1723271361072,0.87229799,60497.0,60496.0,0.0019141]
[1723271361271,0.87231824,60497.0,60496.0,0.0019141]
[1723271361475,0.97136381,60497.0,60496.0,0.0019141]
[1723271361878,0.87232129,60497.0,60496.0,0.0019141]
[1723271363697,0.94657832,60497.0,60496.0,0.0019141]
[1723271364166,0.83637,60497.0,60496.0,0.0019141]
[1723271364399,0.87227605,60497.0,60496.0,0.0019141]
[1723271366296,0.94653308,60497.0,60496.0,0.0019141]
[1723271366949,0.87227605,60497.0,60496.0,0.0019141]
[1723271367547,0.94653308,60497.0,60496.0,0.0019141]
[1723271367757,0.9464502,60497.0,60496.0,0.0019141]
[1723271368077,0.94645805,60497.0,60496.0,0.0019141]
[1723271370200,0.94642834,60497.0,60496.0,0.0019141]
[1723271371529,0.87211978,60497.0,60496.0,0.0019141]
[1723271371909,0.87211665,60497.0,60496.0,0.0019141]
[1723271372657,0.87211664,60497.0,60496.0,0.0019141]
[1723271374452,0.97116216,60497.0,60496.0,0.0019141]
[1723271375161,0.97114655,60497.0,60496.0,0.0019141]
[1723271377305,0.97118424,60497.0,60496.0,0.0019141]
[1723271377542,0.87210103,60497.0,60496.0,0.0019141]
[1723271378609,0.72860103,60497.0,60496.0,0.0019141]
[1723271378788,0.72857584,60497.0,60496.0,0.0019141]
[1723271379458,0.85242985,60497.0,60496.0,0.0019141]
[1723271381667,0.72857584,60497.0,60496.0,0.0019141]
[1723271382260,0.72857584,60497.0,60496.0,0.0787141]
[1723271382941,0.72842819,60497.0,60496.0,0.0787141]
[1723271384450,0.61492819,60497.0,60496.0,0.0787141]
[1723271384663,0.72842819,60497.0,60496.0,0.0787141]
[1723271385735,0.69287,60497.0,60496.0,0.0787141]
[1723271385924,0.72840976,60497.0,60496.0,0.0787141]
[1723271387013,0.72840976,60497.0,60496.0,0.0019141]
[1723271387422,0.413262,60494.0,60493.0,0.0774282]
[1723271387599,0.68638362,60494.0,60493.0,0.21469856]
[1723271388000,0.68638362,60494.0,60493.0,0.23787468]
[1723271388206,0.68638362,60494.0,60493.0,0.16044648]
[1723271388378,0.56230176,60494.0,60493.0,0.16044648]
[1723271388578,0.56230176,60494.0,60493.0,0.13727036]
[1723271388759,0.72760676,60494.0,60493.0,0.16044455]
[1723271388964,0.72760676,60494.0,60493.0,0.13727036]
[1723271389364,0.645078,60493.0,60492.0,0.0009141]
[1723271389565,0.68068638,60493.0,60492.0,0.0009141]
[1723271390149,0.70658788,60493.0,60492.0,0.0009141]
[1723271390842,0.70658788,60493.0,60492.0,0.0019141]
[1723271391048,0.70658788,60493.0,60492.0,0.0009141]
[1723271391275,0.70658788,60493.0,60492.0,0.0019141]
[1723271391478,0.70658788,60493.0,60492.0,0.0029141]
[1723271393448,0.6709795,60493.0,60492.0,0.0029141]
[1723271393645,0.70669128,60493.0,60492.0,0.0029141]
[1723271394004,0.80669128,60493.0,60492.0,0.0029141]
[1723271394766,0.80668569,60493.0,60492.0,0.0029141]
[1723271394974,0.8166276,60493.0,60492.0,0.0029141]
[1723271395175,0.8990276,60493.0,60492.0,0.0029141]
[1723271396580,0.89901619,60493.0,60492.0,0.0029141]
[1723271398175,1.10150586,60493.0,60492.0,0.0029141]
[1723271400361,0.95261859,60493.0,60492.0,0.0029141]
[1723271400575,0.88611859,60493.0,60492.0,0.0029141]
[1723271401534,0.80371859,60493.0,60492.0,0.0029141]
[1723271401972,0.80369871,60493.0,60492.0,0.0029141]
[1723271402664,0.88558134,60493.0,60492.0,0.0029141]
[1723271402907,1.14258934,60493.0,60492.0,0.0029141]
[1723271403160,1.22529563,60493.0,60492.0,0.0029141]
[1723271403832,1.27140133,60493.0,60492.0,0.0029141]
[1723271404072,1.25140133,60493.0,60492.0,0.0029141]
[1723271404289,1.25159762,60493.0,60492.0,0.0029141]
[1723271404498,1.20544845,60493.0,60492.0,0.0029141]
[1723271405829,1.25624845,60493.0,60492.0,0.0029141]
[1723271406039,1.16677587,60493.0,60492.0,0.0029141]
[1723271406241,1.25615168,60493.0,60492.0,0.0029141]
[1723271406643,1.26615168,60493.0,60492.0,0.0029141]
[1723271406973,1.4926666,60493.0,60492.0,0.0029141]
[1723271407655,1.5026666,60493.0,60492.0,0.0029141]
[1723271408064,1.4934976,60493.0,60492.0,0.0029141]
[1723271408294,1.5034976,60493.0,60492.0,0.0029141]
[1723271408503,1.4934976,60493.0,60492.0,0.0029141]
[1723271409127,1.73778708,60493.0,60492.0,0.0029141]
[1723271409651,1.60242979,60493.0,60492.0,0.0029141]
[1723271409860,1.73778614,60493.0,60492.0,0.0029141]
[1723271413056,1.60242979,60493.0,60492.0,0.0019141]
[1723271413258,1.73746135,60493.0,60492.0,0.0009141]
[1723271413498,1.69470704,60493.0,60492.0,0.0019141]
[1723271413709,1.90457514,60493.0,60492.0,0.0019141]
[1723271413894,1.74042544,60493.0,60492.0,0.0019141]
[1723271414171,0.01,60483.0,60482.0,0.0797]
[1723271414375,0.01,60483.0,60471.0,0.0797]
[1723271414376,0.01,60473.0,60471.0,0.0797]
[1723271414600,0.413432,60469.0,60468.0,0.0797]
[1723271414806,0.77748106,60469.0,60468.0,0.0797]
[1723271415012,0.175379,60467.0,60466.0,0.0797]
[1723271415217,0.55913121,60467.0,60466.0,0.0797]
[1723271415420,0.55913121,60467.0,60465.0,0.0009141]
[1723271415421,0.413455,60466.0,60465.0,0.0009141]
[1723271415628,0.66263921,60466.0,60465.0,0.0009141]
[1723271415827,0.82802121,60466.0,60465.0,0.0009141]
[1723271416480,0.92684903,60466.0,60465.0,0.0009141]
[1723271416652,0.93102205,60466.0,60465.0,0.0009141]
[1723271417476,0.9310185,60466.0,60465.0,0.0009141]
[1723271417678,0.90627289,60466.0,60465.0,0.0009141]
[1723271417889,0.91627289,60466.0,60465.0,0.0019141]
[1723271418519,1.20139115,60466.0,60465.0,0.0019141]
[1723271419336,1.27546981,60466.0,60465.0,0.0019141]
[1723271419542,1.25073381,60466.0,60465.0,0.0019141]
[1723271419725,0.01,60459.0,60458.0,0.0009141]
[1723271419962,0.40745823,60459.0,60458.0,0.0009141]
[1723271420170,0.50745823,60459.0,60458.0,0.0243882]
[1723271420383,0.72476023,60459.0,60458.0,0.0009141]
[1723271420582,0.83826023,60459.0,60458.0,0.0009141]